Cogmind - Beta 12 @@@ ROGUE MODE // 2023.12.20 @ 16:06:47 Player: DreamAR Result: Escaped! Performance ------------- Evolutions (9) 4500 Regions Visited (29) 5800 Robots Destroyed (356) 1780 Value Destroyed (18638) 18638 Prototype IDs (88) 1760 Alien Tech Used (11) 2200 Bonus (20953) 20953 TOTAL SCORE: 55631 Bonus ------- Triggered High Security 500 High Alert Combat Kills 5832 Follower Combat Kills 2429 Entered DSFs 500 Network Hubs Disabled 400 Met Imprinter 300 Destroyed Z-Imprinter 1000 Met Zhirov 300 A7 Reached Mainframe 300 Acquired SGEMP 2000 Delivered SGEMP 2000 Recovered Sigix Corpse 4000 Win 3000 Friendly Fire -1608 Cogmind --------- Core Integrity 1555/1600 Matter 285/300 Energy 148/150 System Corruption 0% Temperature Cool (4) Movement Hovering (46) Location To Epsilon Eridani Parts ------- > --- POWER (1) -------- Micro Antimatter Reactor > --- PROPULSION (2) --- Cooled Linear Gravjet Combat Linear Gravjet > --- UTILITY (20) ----- Advanced Power Amplifier Structural Scanner Spectral Analyzer Advanced Sensor Array Advanced Signal Interpreter Advanced Signal Interpreter Improved Targeting Computer Improved Targeting Computer Advanced Melee Analysis Suite Advanced Target Analyzer Core Analyzer Layered Light Armor Plating Graphene Brace Advanced Thermal Shield Advanced System Shield System Guard Improved System Restoration Module > --- WEAPON (2) ------- Nanosword > --- INVENTORY (5) ---- Improved Q-thruster Small Battery (100) Enhanced Quantum Rifle Sigix Corpse Sigix Corpse Peak State ------------ > --- POWER ------------ Light Quantum Reactor > --- PROPULSION ------- High-density Centrium Heavy Treads > --- UTILITY ---------- Experimental Cooling System Large Storage Unit Experimental Energy Well Spectral Analyzer Advanced Signal Interpreter Advanced Targeting Computer Advanced Target Analyzer Advanced Target Analyzer Heavy Regenerative Plating Graphene Brace Thermal Barrier Experimental EM Disruption Field Experimental Force Field Hacking Suite Advanced Hacking Suite Advanced System Shield System Guard > --- WEAPON ----------- Compact Linear Accelerator Compact Linear Accelerator > --- INVENTORY -------- Quantum Reactor Centrium Wheel Terrain Scanner Antimissile System Transdimensional Reconstructor Enhanced Nova Cannon Core Cannon Compact Tesla Bomb Launcher Advanced Remote Datajack Core Stripper Nanosword Sigix Corpse Sigix Corpse [Rating: 185] Favorites ----------- Power Zionite Light DM Reactor Engine Ion Engine Power Core Fission Core Reactor Zionite Light DM Reactor Propulsion Advanced Treads Treads Advanced Treads Leg Aluminum Leg Wheel Armored Wheel Hover Unit Zionite Glidesys I Flight Unit Improved Flight Unit Utility Advanced Signal Interpreter Device Advanced Sensor Array Storage Large Storage Unit Processor Advanced Signal Interpreter Hackware Hacking Suite Protection Hardened Medium Armor Plating Artifact Phase Armor Weapon Graviton Cannon Energy Gun Cooled Pulse Rifle Energy Cannon Cooled Particle Cannon Ballistic Gun Assault Rifle Ballistic Cannon Graviton Cannon Launcher Grenade Launcher Special Weapon RU-N14's Throwing Claymores Impact Weapon Core Stripper Slashing Weapon Nanosword Build | -11 -10 -10 -10 -9 -8 -7 -7 -6 -6 -6 -6 -6 -5 -5 -5 -5 -5 -4 -4 -4 -4 -4 -4 -3 -3 -3 -2 -2 -1 ------- Run | Jun Mat Min Exi Min Mat Fac DSF Fac Low Low Zio Dee Pro Fac Upp Upp Zhi Pro Fac Ext Cet Arc Hub Res Qua Sec Res Tes Acc Slots Evolved 18 | . . . . . 4 2 . 2 . . . . . 2 . . . . 2 . . . . 2 . . 2 . 2 Power . | . . . . . . . . . . . . . . . . . . . . . . . . . . . . . . Propulsion . | . . . . . . . . . . . . . . . . . . . . . . . . . . . . . . Utility 18 | . . . . . 4 2 . 2 . . . . . 2 . . . . 2 . . . . 2 . . 2 . 2 Weapon . | . . . . . . . . . . . . . . . . . . . . . . . . . . . . . . Parts Attached 583 | 11 16 2 1 3 50 4 7 40 4 13 8 23 10 56 25 23 10 1 6 14 9 3 24 30 38 58 43 28 23 Power 35 | 2 1 . . . 5 . 1 5 . 1 . 2 . . 1 . 2 . . 3 1 . . 1 1 4 3 1 1 Engine 10 | 2 1 . . . 2 . . 5 . . . . . . . . . . . . . . . . . . . . . Core 5 | . . . . . 3 . 1 . . 1 . . . . . . . . . . . . . . . . . . . Reactor 20 | . . . . . . . . . . . . 2 . . 1 . 2 . . 3 1 . . 1 1 4 3 1 1 Propulsion 54 | 4 4 . . . 7 . . 8 . 1 1 3 3 2 . . . . . . 1 2 . . 3 2 5 8 . Treads 25 | 2 2 . . . 6 . . 6 . 1 . . 1 1 . . . . . . 1 1 . . 2 2 . . . Leg 4 | 2 . . . . . . . . . . . . 1 . . . . . . . . 1 . . . . . . . Wheel 13 | . 2 . . . . . . 2 . . . . 1 . . . . . . . . . . . 1 . 5 2 . Hover 11 | . . . . . . . . . . . 1 3 . 1 . . . . . . . . . . . . . 6 . Flight 1 | . . . . . 1 . . . . . . . . . . . . . . . . . . . . . . . . Utility 274 | 2 5 2 1 . 22 2 4 18 4 5 2 13 5 26 14 13 6 1 4 8 2 1 10 11 21 25 17 15 15 Device 185 | 1 3 . . . 16 1 3 10 3 3 1 8 4 20 9 13 4 1 1 3 1 1 6 7 15 21 8 11 11 Storage 22 | 1 . 2 1 . 1 . . 3 . . . 2 1 3 . . 1 . . 1 . . 2 2 . . 1 1 . Processor 32 | . . . . . 2 . 1 2 1 1 1 . . 2 4 . . . 1 1 . . 1 1 1 1 6 3 3 Hackware 9 | . . . . . 1 1 . . . . . 1 . . 1 . . . . . . . . 1 1 1 2 . . Protection 23 | . 2 . . . 2 . . 3 . 1 . 2 . 1 . . 1 . 2 3 1 . 1 . 2 1 . . 1 Artifact 3 | . . . . . . . . . . . . . . . . . . . . . . . . . 2 1 . . . Weapon 220 | 3 6 . . 3 16 2 2 9 . 6 5 5 2 28 10 10 2 . 2 3 5 . 14 18 13 27 18 4 7 Energy Gun 16 | 1 . . . . 4 1 . . . . . 1 . 5 . . . . . . . . . . . . . . 4 Energy Cannon 41 | . 2 . . 1 3 1 1 6 . 3 1 . 2 8 . . . . 1 . . . . . 2 5 4 1 . Ballistic Gun 11 | 2 2 . . . 4 . . 1 . . . . . . 1 . . . . . 1 . . . . . . . . Ballistic Cannon 75 | . . . . . 5 . . . . . . . . 6 5 6 1 . 1 3 2 . 6 10 7 15 6 2 . Launcher 42 | . 2 . . 2 . . 1 1 . 3 2 . . 1 2 4 . . . . 2 . 6 5 1 3 7 . . Special Weapon 14 | . . . . . . . . 1 . . 1 4 . 4 2 . 1 . . . . . 1 . . . . . . Impact Weapon 9 | . . . . . . . . . . . 1 . . 3 . . . . . . . . . . 2 3 . . . Slashing Weapon 12 | . . . . . . . . . . . . . . 1 . . . . . . . . 1 3 1 1 1 1 3 Piercing Weapon . | . . . . . . . . . . . . . . . . . . . . . . . . . . . . . . Special Melee Weapon . | . . . . . . . . . . . . . . . . . . . . . . . . . . . . . . Unidentified Prototypes 67 | . . . . . 5 1 . 2 . . 1 7 . 11 1 . 4 . . . 3 1 1 2 10 10 3 4 1 Corrupted Parts 3 | . . . . . . . . . . . . 1 . . . . . . . . . . . . . . 1 . 1 System Corruption 3 | . . . . . . . . . . . . 1 . . . . . . . . . . . . . . 1 . 1 Parts Lost 81 | . 1 . . . 14 . . 3 1 4 . 1 2 7 3 1 . . . 4 . . 2 9 1 3 18 6 1 Power 9 | . . . . . 2 . . . . 1 . 1 . . 1 . . . . 1 . . . 1 . . 2 . . Propulsion 6 | . . . . . 2 . . . . 2 . . 1 . . . . . . . . . . . . . 1 . . Utility 57 | . 1 . . . 7 . . 3 1 1 . . 1 7 1 1 . . . 3 . . 1 6 1 3 13 6 1 Weapon 9 | . . . . . 3 . . . . . . . . . 1 . . . . . . . 1 2 . . 2 . . Highest Loss Streak 13 | . 1 . . . 7 . . 2 1 2 . 1 2 4 1 1 . . . 2 . . 2 9 1 2 13 2 1 To Critical Strikes 2 | . . . . . 1 . . . . . . . . . 1 . . . . . . . . . . . . . . Average Slot Usage (%) 92 | . 99 100 74 100 97 100 100 99 99 96 95 95 94 95 91 91 90 88 85 90 93 93 94 93 89 83 89 75 88 Engine 1 | . 14 14 14 14 6 . . 5 6 . . . . . . . . . . . . . . . . . . . . Core 1 | . . . . . 3 7 7 . . 5 6 . . . . . . . . . . . . . . . . . . Reactor 2 | . . . . . . . . . . . . 3 6 5 4 5 5 5 5 5 5 5 5 4 4 4 3 . 4 Treads 5 | . 9 . . . 9 15 15 6 13 9 6 4 1 3 5 5 5 5 5 5 5 4 5 4 4 4 2 . . Wheel 2 | . 13 28 28 28 8 . . 6 . . . . 1 1 . . . . . . . . . . . . 2 2 . Hover 1 | . . . . . . . . . . . 2 7 9 1 . . . . . . . . . . . . . 4 8 Device 23 | . 8 . . . 27 30 24 23 25 22 20 18 16 34 25 30 26 23 23 24 30 31 30 31 26 22 21 14 29 Storage 10 | . 14 14 14 14 9 7 7 7 13 13 13 13 13 11 11 11 13 17 12 10 10 10 10 9 10 9 7 4 2 Processor 18 | . . . . . 5 7 13 16 13 20 20 20 20 19 22 19 17 17 19 22 21 21 21 19 19 19 23 35 34 Hackware 6 | . . . . . 7 15 15 13 13 6 6 6 6 2 4 5 5 5 5 5 5 5 5 9 12 9 12 7 4 Protection 3 | . 5 14 14 14 3 . . 4 . 3 6 6 4 . 1 . 2 . 2 5 5 5 5 3 . 2 3 . 3 Energy Cannon 4 | . 4 . . . 3 13 14 12 13 12 12 . 12 3 . . . . . . . . . . . . . . . Ballistic Cannon 4 | . . . . . 6 . . . . . . . . 3 10 9 10 11 9 10 9 10 9 7 6 5 5 . . Naked Turns . | . . . . . . . . . . . . . . . . . . . . . . . . . . . . . . Heaviest Build 113 | 14 22 56 56 57 72 44 44 74 58 62 62 67 57 80 85 88 85 80 80 81 86 80 81 77 113 103 98 31 29 Greatest Support 92 | 40 40 24 24 24 44 44 44 59 59 59 31 37 28 92 80 80 80 80 80 80 80 80 80 80 90 90 90 36 35 Greatest Overweight (x) 26 | . . 2 2 2 5 . . 3 . 1 1 2 4 19 1 1 1 . . 1 1 26 1 . 6 1 4 1 1 Average Overweight (x) . | . . . 2 2 1 . . 1 . . 1 1 2 1 . . . . . . . . . . . . . . . Largest Inventory Capacity 20 | 8 8 20 20 20 20 15 15 20 15 15 15 15 15 15 15 15 15 15 15 15 15 15 15 15 15 15 15 15 5 Average Capacity 14 | 6 8 13 20 20 17 15 15 17 15 15 15 15 15 15 15 15 15 15 15 15 15 15 15 15 15 15 15 14 5 Most Carried 20 | 7 8 12 13 11 20 15 15 20 15 15 15 15 15 15 15 15 15 15 15 15 15 15 15 15 15 15 15 15 5 Average Carried 13 | 4 7 8 11 10 13 13 14 16 14 13 14 14 12 14 13 14 14 14 14 14 14 14 14 13 14 14 14 13 4 Final Capacity 20 | 8 8 20 20 20 15 15 15 15 15 15 15 15 15 15 15 15 15 15 15 15 15 15 15 15 15 15 15 5 5 Final Carried 15 | 7 8 10 12 11 15 15 15 15 14 15 15 15 12 15 15 15 15 15 14 15 15 15 13 9 15 15 14 5 5 Class Distribution -------------------- 54% | Mutant 24% | Hacker-Mutant 9% | Scavenger-Mutant 5% | Commander-Mutant Dominant Class ---------------- Mutant | -10/Materials Mutant | -10/Mines Mutant | -10/Exiles Mutant | -9/Mines Mutant | -8/Materials Mutant | -7/Factory Hacker-Mutant | -7/DSF Hacker-Mutant | -6/Factory Hacker-Mutant | -6/Lower Caves Mutant | -6/Lower Caves Mutant | -6/Zion Mutant | -6/Deep Caves Mutant | -5/Proximity Caves Mutant | -5/Factory Mutant | -5/Upper Caves Mutant | -5/Upper Caves Mutant | -5/Zhirov Mutant | -4/Proximity Caves Mutant | -4/Factory Commander-Mutant | -4/Extension Commander-Mutant | -4/Cetus Commander-Mutant | -4/Archives Scavenger-Mutant | -4/Hub_04(d) Scavenger-Mutant | -3/Research Hacker-Mutant | -3/Quarantine Hacker-Mutant | -3/Section 7 Hacker-Mutant | -2/Research Scavenger-Ninja | -2/Testing Scavenger-Scout | -1/Access Resources | -11 -10 -10 -10 -9 -8 -7 -7 -6 -6 -6 -6 -6 -5 -5 -5 -5 -5 -4 -4 -4 -4 -4 -4 -3 -3 -3 -2 -2 -1 ----------- Run | Jun Mat Min Exi Min Mat Fac DSF Fac Low Low Zio Dee Pro Fac Upp Upp Zhi Pro Fac Ext Cet Arc Hub Res Qua Sec Res Tes Acc Matter Collected 12732 | 191 281 19 . 50 1332 . 32 346 198 298 73 219 280 610 487 642 . 362 65 963 192 110 563 1297 596 1911 1348 167 100 Remotely . | . . . . . . . . . . . . . . . . . . . . . . . . . . . . . . Salvage Created 16018 | 42 371 42 . 118 1008 . 243 609 119 363 . 313 145 1868 168 763 . 141 54 865 155 42 1041 1403 760 2049 2994 144 198 Parts 669 | 6 23 12 . 7 54 . 14 25 8 10 . 24 5 78 10 40 . 1 3 39 6 . 36 50 21 76 100 9 12 Haulers Intercepted 6 | . . . . . 2 . . . . . . . . 2 . . . . . . . . . . . . 2 . . Recyclers Shooed 5 | . . . . . . . . . . . . . . 1 . . . . . 1 . . . 1 . . 2 . . Parts Field Recycled 16 | . . . . . . . . . . . . . . . 4 9 3 . . . . . . . . . . . . Retrieved Matter 157 | . . . . . . . . . . . . . . . 62 67 28 . . . . . . . . . . . . Parts Self-Destructed 49 | . . . . . . . . . 8 10 1 . 4 . 7 18 . 1 . . . . . . . . . . . Prevented 18 | . . . . . . . . . . . . . . . . 18 . . . . . . . . . . . . . Kills | -11 -10 -10 -10 -9 -8 -7 -7 -6 -6 -6 -6 -6 -5 -5 -5 -5 -5 -4 -4 -4 -4 -4 -4 -3 -3 -3 -2 -2 -1 ------- Run | Jun Mat Min Exi Min Mat Fac DSF Fac Low Low Zio Dee Pro Fac Upp Upp Zhi Pro Fac Ext Cet Arc Hub Res Qua Sec Res Tes Acc Combat Hostiles Destroyed 286 | . 12 6 . 5 23 . 5 8 2 16 . 9 5 32 9 16 . 4 1 9 1 1 17 22 8 37 36 1 1 Melee 3 | . . . . . . . . . . . . . . . . . . . . . . . . . . . 1 1 1 Guns 21 | . 11 . . . 10 . . . . . . . . . . . . . . . . . . . . . . . . Cannons 135 | . 1 . . . 13 . 2 8 2 4 . . 3 14 6 3 . 4 1 7 1 1 10 12 5 28 10 . . AOE 96 | . . 6 . 5 . . 3 . . 12 . 9 2 17 3 9 . . . 2 . . 7 5 1 5 10 . . Classes Destroyed 25 | 1 3 1 . 1 5 . 1 2 . 2 . 1 1 4 . . . . . 1 . . . . 2 . . . . Worker 9 | . . . . . 2 . . . . . . . . 6 . . . . . . . . . . . . 1 . . Builder 14 | . 1 . . . . . . . . . . . . 2 . . . . . 1 . . . 1 . 5 2 1 1 Tunneler 2 | 2 . . . . . . . . . . . . . . . . . . . . . . . . . . . . . Hauler 6 | . . . . . 2 . . . . . . . . 2 . . . . . . . . . . . . 2 . . Recycler 12 | . . . . . . . . 1 . . . . . 2 . . . . . 4 . . . 2 1 . 1 . 1 Carrier 1 | . . . . . . . . . . . . . . 1 . . . . . . . . . . . . . . . Mechanic 1 | . . . . . . . . . . 1 . . . . . . . . . . . . . . . . . . . Operator 5 | . . . . . . . . . . . . . . . . . . . . 1 . . 1 . . 2 1 . . Watcher 10 | . . . . . 2 . . 1 . . . . . . . . . . . 1 . . 2 . 1 1 2 . . Swarmer 41 | . 6 6 . . 4 . . . . 4 . . 4 . 5 6 . 2 . 1 . . . . . . 3 . . Saboteur 4 | . . . . . . . . . . . . . . 1 . . . . . . . . . 2 . . 1 . . Grunt 117 | . 6 . . 4 12 . 4 4 . 7 . . . 11 . 3 . 1 . 3 1 . 9 13 4 17 18 . . Brawler 16 | . . . . 1 1 . . . . 2 . . . 2 . 1 . . . . . . 1 1 . . 7 . . Duelist 6 | . . . . . . . . . . 2 . . . . . 1 . . . . . . . 1 . 2 . . . Protector 5 | . . . . . . . . . . . . . . 2 . . . . . . . . 2 . . . 1 . . Researcher 4 | . . . . . . . . . . . . . . . . . . . . . . . . . 1 2 . 1 . Sentry 26 | . . . . . 5 . . 1 1 1 . . . 1 1 1 . 1 1 4 . 1 . 1 . 6 1 . . Specialist 6 | . . . . . . . . . . . . . . 3 . . . . . . . . 2 . . 1 . . . Hunter 17 | . . . . . 1 . . . 1 . . . . 6 3 1 . . . 1 . . . . . 2 2 . . Programmer 30 | . . . . . . . . 3 . . . . . 6 . 2 . . . . . . . 4 3 7 3 1 1 Heavy 3 | . . . . . . . 1 . . . . . . . . . . . . . . . 1 . . 1 . . . Behemoth 3 | . . . . . . . . . . . . . 1 . . 1 . . . . . . 1 . . . . . . S7 Guard 1 | . . . . . . . . . . . . . . . . . . . . . . . . . . 1 . . . Lightning 2 | . . . . . . . . . . . . . . . . . . . . . . . 2 . . . . . . Fortress 1 | . . . . . . . . . . . . . . . . . . . . . . . . . 1 . . . . Zionite 1 | . . 1 . . . . . . . . . . . . . . . . . . . . . . . . . . . Z-Light 8 | . . . . . . . . . . . . 8 . . . . . . . . . . . . . . . . . Thug 1 | . . . . . . . . . . . . 1 . . . . . . . . . . . . . . . . . Butcher 2 | . . . . . . . . . . . . 1 . . . . . . . . 1 . . . . . . . . Guerrilla 1 | . . . . . . . . . . . . . . . . . . . . . 1 . . . . . . . . Best Kill Streak 20 | 1 8 3 . 5 6 . 4 2 1 13 . 5 4 20 6 7 . 3 1 4 1 1 4 10 5 8 8 1 1 Combat Bots Only 13 | . 7 3 . 5 5 . 4 2 1 12 . 5 4 13 6 7 . 3 1 2 1 1 4 10 4 6 8 1 1 Max Kills in Single Turn 7 | 1 2 4 . 2 2 . 2 1 1 5 . 3 3 7 2 4 . 1 1 4 2 1 3 2 2 6 3 1 1 Gunslinging 1 | . 1 . . . . . . . . . . . . . . . . . . . . . . . . . . . . Exploded 5 | . . 3 . 2 . . 2 . . 4 . 2 2 5 2 4 . . . 2 . . 3 1 1 2 2 . . Melee 1 | . . . . . . . . . . . . . . . . . . . . . . . . . . . 1 1 1 Uniques/NPCs Destroyed 1 | . . . . . . . . . . . . 1 . . . . . . . . . . . . . . . . . Z-Imprinter (-6/Deep Caves) Combat | -11 -10 -10 -10 -9 -8 -7 -7 -6 -6 -6 -6 -6 -5 -5 -5 -5 -5 -4 -4 -4 -4 -4 -4 -3 -3 -3 -2 -2 -1 -------- Run | Jun Mat Min Exi Min Mat Fac DSF Fac Low Low Zio Dee Pro Fac Upp Upp Zhi Pro Fac Ext Cet Arc Hub Res Qua Sec Res Tes Acc Damage Taken 19948 | . 407 42 . 147 1612 . 123 1245 201 925 . 306 415 1506 540 438 . 137 . 1094 56 11 545 1676 771 2578 4133 693 347 Core 2700 | . 84 23 . 48 161 . 19 108 27 136 . . . 253 46 35 . 37 . 26 13 . 70 272 246 179 703 169 45 Absorbed by Shields 2894 | . . . . . 158 . . . . . . . . 239 . . . . . 73 60 12 354 291 . 857 850 . . Reduced by Siege Mode 79 | . . . . . . . . . . . . . . 5 . . . . . 55 . . . 6 . 13 . . . Redirected to Core 220 | . . . . . . . . . . . . . . . . . . . . . . . . . 197 23 . . . Redirected to Shielding 151 | . . . . . . . . . . . . . . . . . . . . 151 . . . . . . . . . Regen/Repaired (Parts) 2118 | . . . . . . . . . . . . . . . . . . . . . . . . . . 880 973 265 . Core Remaining (%) 66 | 100 . . . 38 70 . 97 . . . . . 68 . . . . 62 . . . . 90 . . 16 . 25 97 Volleys Fired 749 | 9 40 2 . 6 98 . 5 37 4 19 . 8 10 51 17 40 4 7 1 40 4 5 49 54 24 125 88 2 . Largest 2 | 2 2 2 . 2 2 . 2 2 2 2 . 2 2 2 2 2 1 2 2 2 2 2 2 2 2 2 2 1 . Hottest 300 | 60 88 60 . 68 136 . 180 180 180 180 . . 180 175 140 140 7 140 140 140 140 140 140 140 300 300 300 70 . Shots Fired 1352 | 18 78 4 . 10 174 . 10 72 8 36 . 16 20 100 30 52 4 14 2 79 7 10 87 103 40 216 160 2 . Gun 163 | 18 69 . . . 76 . . . . . . . . . . . . . . . . . . . . . . . . Cannon 995 | . 9 . . 2 98 . 8 72 8 23 . . 16 84 19 17 . 14 2 79 6 10 70 86 36 203 131 2 . Launcher 148 | . . 4 . 8 . . 2 . . 13 . . . . 7 35 . . . . 1 . 15 17 4 13 29 . . Special 46 | . . . . . . . . . . . . 16 4 16 4 . 4 . . . . . 2 . . . . . . Kinetic 855 | 9 41 . . . 123 . . . . . . . . 37 19 17 . 14 2 79 6 10 70 86 33 185 122 2 . Thermal 290 | 9 37 . . 2 38 . 8 72 8 23 . . 16 47 . . . . . . . . . . 3 18 9 . . Explosive 90 | . . 4 . 8 . . 2 . . 13 . 16 4 16 8 2 . . . . 1 . 9 7 . . . . . Electromagnetic 111 | . . . . . 13 . . . . . . . . . 3 33 . . . . . . 6 10 4 13 29 . . Robot Hit Streak 18 | 3 8 1 . 7 15 . 10 12 5 10 . 4 16 17 7 4 3 4 4 16 5 8 9 18 10 12 13 . . Robot Miss Streak 8 | 4 3 1 . 2 8 . 1 2 1 2 . 3 1 2 4 3 1 2 . 2 1 1 4 6 1 5 4 . . Penetration Max 1 | . . . . . 1 . . . . . . . . . . . . . . . . . . . 1 1 . . . Secondary Targets 2 | . 1 . . . 1 . . . . . . . . . . . . . . . . . . . . . . . . Max Gunslinging Chain 1 | . 1 . . . 1 . . . . . . . . . . . . . . . . . . . . . . . . Shots Hit Robots 877 | 10 45 2 . 7 129 . 9 46 5 22 . 8 16 66 17 11 3 7 2 62 6 9 43 65 28 147 95 9 8 Core Hits 627 | 2 19 10 . 10 74 . 11 15 3 46 . 23 6 60 11 26 . 4 2 25 6 2 53 53 11 74 76 2 3 Critical Kills 10 | . 1 . . . 1 . . . . . . . . . . . . . . . . . . . 1 7 . . . Critical Parts Destroyed 10 | . . . . . . . . . . . . . . . . . . . . . . . . . 4 5 1 . . Critical Strikes 87 | . 1 . . . 1 . . . . . . 3 . 5 1 . . 1 . 4 1 . 3 9 7 33 16 2 . Destroy 22 | . 1 . . . 1 . . . . . . . . . . . . . . . . . . . 5 14 1 . . Blast 58 | . . . . . . . . . . . . . . 3 1 . . 1 . 4 1 . 3 9 2 19 15 . . Sever 7 | . . . . . . . . . . . . 3 . 2 . . . . . . . . . . . . . 2 . Melee Attacks 89 | . . . . . . . . . . . 5 . . 7 . . . . . . . . 1 4 5 13 2 27 25 Kinetic 14 | . . . . . . . . . . . . . . . . . . . . . . . . . 3 11 . . . Impact 12 | . . . . . . . . . . . 5 . . 7 . . . . . . . . . . . . . . . Slashing 63 | . . . . . . . . . . . . . . . . . . . . . . . 1 4 2 2 2 27 25 Piercing . | . . . . . . . . . . . . . . . . . . . . . . . . . . . . . . Sneak Attacks 8 | . . . . . . . . . . . . . . . . . . . . . . . . . 1 2 . 3 2 Combat Hostiles . | . . . . . . . . . . . . . . . . . . . . . . . . . . . . . . Follow-up Attacks . | . . . . . . . . . . . . . . . . . . . . . . . . . . . . . . Damage Inflicted 55624 | 129 561 429 . 523 2560 . 652 1856 230 2619 . 2033 1079 7155 1153 1742 . 402 117 3804 579 514 3126 3875 2476 9959 6789 732 530 Guns 1707 | 129 478 . . . 1100 . . . . . . . . . . . . . . . . . . . . . . . . Cannons 31208 | . 83 . . 20 1460 . 352 1658 230 639 . . 751 2779 493 480 . 402 117 3317 311 514 1724 2474 1864 8196 3344 . . Explosions 20041 | . . 429 . 503 . . 300 198 . 1980 . 1640 268 4022 582 1262 . . . 487 268 . 1402 1401 428 1426 3445 . . Melee 1783 | . . . . . . . . . . . . . . . . . . . . . . . . . 184 337 . 732 530 Ramming . | . . . . . . . . . . . . . . . . . . . . . . . . . . . . . . Kinetic 22440 | 73 266 . . . 1749 . . . . . . . . 1628 493 480 . 402 117 3317 311 514 1724 2474 721 5083 3088 . . Thermal 13113 | 56 295 . . 20 612 . 352 1856 230 639 . . 751 2531 . 47 . . . 487 . . 36 . 1200 3656 345 . . Explosive 10643 | . . 429 . 503 . . 300 . . 1980 . 1640 268 2642 527 339 . . . . 268 . 848 532 . . 367 . . Electromagnetic 7154 | . . . . . 199 . . . . . . . . . 55 876 . . . . . . 518 869 428 1220 2989 . . Impact . | . . . . . . . . . . . . . . . . . . . . . . . . . . . . . . Slashing 2274 | . . . . . . . . . . . . 393 60 354 78 . . . . . . . . . 127 . . 732 530 Piercing . | . . . . . . . . . . . . . . . . . . . . . . . . . . . . . . Highest Corruption 15 | . 1 1 1 1 9 . . 2 2 2 2 1 1 . 1 . . . . . . . . . . 3 2 15 . Average Corruption 2 | . 1 1 1 1 8 . . 1 2 2 2 1 1 . 1 . . . . . . . . . . 2 1 7 . Corruption Purged 1 | . . . . . . . . . . . . . . . . . . . . . . . . . . . . . 1 Corruption Blocked . | . . . . . . . . . . . . . . . . . . . . . . . . . . . . . . Effects 120 | . 3 1 1 . 38 . . 8 14 20 3 6 8 . . . . . . . . . . . . 13 . 5 . Message Errors 32 | . 2 . . . 12 . . . 1 6 1 4 1 . . . . . . . . . . . . 4 . 1 . Matter Fused 26 | . 1 . . . 8 . . 1 6 1 1 . 4 . . . . . . . . . . . . 2 . 2 . Heat Flow Errors 18 | . . . . . 4 . . 1 3 6 . 1 1 . . . . . . . . . . . . 2 . . . Energy Discharges 15 | . . 1 1 . 5 . . 3 1 3 . . . . . . . . . . . . . . . 1 . . . Parts Rejected 1 | . . . . . . . . . . . . . . . . . . . . . . . . . . 1 . . . Parts Fused 1 | . . . . . . . . . . 1 . . . . . . . . . . . . . . . . . . . Data Loss (minor) 11 | . . . . . 2 . . . 2 2 . 1 2 . . . . . . . . . . . . 1 . 1 . Data Loss (major) 6 | . . . . . 2 . . . 1 1 1 . . . . . . . . . . . . . . 1 . . . Misfires 3 | . . . . . 2 . . 1 . . . . . . . . . . . . . . . . . . . . . Alerts 3 | . . . . . 1 . . 2 . . . . . . . . . . . . . . . . . . . . . Misdirections 1 | . . . . . . . . . . . . . . . . . . . . . . . . . . . . 1 . Weapon Failures 3 | . . . . . 2 . . . . . . . . . . . . . . . . . . . . 1 . . . Overload Shots 43 | . . . . . . . 6 14 4 11 . . 8 . . . . . . . . . . . . . . . . Effects 4 | . . . . . . . 1 1 . 1 . . 1 . . . . . . . . . . . . . . . . Energy Bleed 2 | . . . . . . . 1 1 . . . . . . . . . . . . . . . . . . . . . Heat Surge 2 | . . . . . . . . . . 1 . . 1 . . . . . . . . . . . . . . . . Overflow Damage 3789 | . . . . . 18 . 36 231 . 90 . 65 . 317 70 63 . 47 . 243 . . 6 248 771 1062 236 185 101 Projectiles 2702 | . . . . . 18 . 36 116 . 4 . 18 . 57 33 53 . 47 . 194 . . 6 185 771 946 218 . . Explosions 701 | . . . . . . . . 115 . 86 . 47 . 260 37 10 . . . 49 . . . 63 . 16 18 . . Melee 386 | . . . . . . . . . . . . . . . . . . . . . . . . . . 100 . 185 101 Knockbacks 124 | . . . . . 19 . . . . . . . . 1 1 3 . 1 . 9 1 . 8 21 3 36 21 . . Impact . | . . . . . . . . . . . . . . . . . . . . . . . . . . . . . . Kinetic 111 | . . . . . 15 . . . . . . . . 1 1 3 . 1 . 9 1 . 8 17 3 32 20 . . Secondary 13 | . . . . . 4 . . . . . . . . . . . . . . . . . . 4 . 4 1 . . Self-Inflicted Damage 1506 | . . 33 . 40 . . . 162 . 50 . . . . 102 44 . . . 51 63 . 171 375 28 98 289 . . Shots 62 | . . 2 . 3 . . . 2 . 2 . . . . 5 2 . . . 1 1 . 2 12 3 6 21 . . Rammed . | . . . . . . . . . . . . . . . . . . . . . . . . . . . . . . Targets Rammed . | . . . . . . . . . . . . . . . . . . . . . . . . . . . . . . Kicked . | . . . . . . . . . . . . . . . . . . . . . . . . . . . . . . Crushed . | . . . . . . . . . . . . . . . . . . . . . . . . . . . . . . Highest Temperature 367 | . 260 15 . 87 367 . . 234 257 253 . 246 352 29 42 144 . 172 36 178 . . 32 170 292 228 181 . . Average Temperature 83 | . 77 10 . 49 130 . . 68 73 85 . 138 184 11 31 30 . 95 27 64 . . 12 38 100 70 86 . . Received Heat Transfer 4050 | . 147 . . 60 777 . 81 462 105 198 . 81 60 245 45 39 . 18 . 190 4 . 40 295 144 593 367 36 63 Effects 11 | . 3 . . . 5 . . . . . . . 3 . . . . . . . . . . . . . . . . Energy Bleed 4 | . 1 . . . 2 . . . . . . . 1 . . . . . . . . . . . . . . . . Interference 5 | . 2 . . . 3 . . . . . . . . . . . . . . . . . . . . . . . . Matter Decay 2 | . . . . . . . . . . . . . 2 . . . . . . . . . . . . . . . . Siege Activations 8 | . . . . . . . . . . . . . . 2 1 . . . . 1 . . . 1 . 3 . . . Total Turns 88 | . . . . . . . . . . . . . . 13 2 . . . . 28 . . . 5 . 40 . . . Longest Duration 28 | . . . . . . . . . . . . . . 8 2 . . . . 28 . . . 5 . 18 . . . Robots Corrupted 25 | . . . . . . . . . . . . . . . . 4 . . . . . . . 4 1 1 15 . . Combat Hostiles 25 | . . . . . . . . . . . . . . . . 4 . . . . . . . 4 1 1 15 . . Parts Fried 37 | . . . . . . . . . . . . . . . . 4 . . . . . . 4 9 3 3 14 . . Impact Corruptions 2 | . . . . . . . . . . . . . . . . . . . . . . . . 1 . 1 . . . Robots Melted 1 | . . . . . . . . . . . . . . 1 . . . . . . . . . . . . . . . Combat Hostiles 1 | . . . . . . . . . . . . . . 1 . . . . . . . . . . . . . . . Parts Melted 19 | . 1 . . . 5 . . . 1 3 . . 5 4 . . . . . . . . . . . . . . . Heat Transferred 8641 | 125 623 . . 37 1036 . 337 1919 250 724 . . 700 2253 . 50 . . . 300 . . . . . 150 137 . . Parts Sabotaged . | . . . . . . . . . . . . . . . . . . . . . . . . . . . . . . Parts Stolen . | . . . . . . . . . . . . . . . . . . . . . . . . . . . . . . Parts Stripped . | . . . . . . . . . . . . . . . . . . . . . . . . . . . . . . Power Chain Reactions 10 | . . . . . . . . . . . . . . . . 4 . . . . . . 1 1 . 2 2 . . Missiles Intercepted . | . . . . . . . . . . . . . . . . . . . . . . . . . . . . . . Alert | -11 -10 -10 -10 -9 -8 -7 -7 -6 -6 -6 -6 -6 -5 -5 -5 -5 -5 -4 -4 -4 -4 -4 -4 -3 -3 -3 -2 -2 -1 ------- Run | Jun Mat Min Exi Min Mat Fac DSF Fac Low Low Zio Dee Pro Fac Upp Upp Zhi Pro Fac Ext Cet Arc Hub Res Qua Sec Res Tes Acc Peak Influence 2094 | 10 317 297 . 159 317 111 205 182 . . . . . 1018 . . . . 90 493 757 427 1568 1099 780 1570 2094 1324 1162 Initial 1172 | . 6 76 . . 61 111 77 107 . . . . . 18 . . . . . 44 276 302 149 822 600 368 882 1172 803 Average 556 | 2 184 141 . 137 151 111 155 79 . . . . . 491 . . . . 39 178 541 416 930 919 644 854 1314 1168 933 Maximum Alert Level 5 | . 1 1 . . 1 . 1 . . . . . . 3 . . . . . 2 3 2 4 3 3 4 5 4 4 Low Security (%) 34 | 100 65 86 . 100 68 100 46 100 . . . . . 31 . . . . 100 66 . . 3 . . . . . . Level 1 12 | . 34 13 . . 31 . 53 . . . . . . 21 . . . . . 17 10 10 7 . . 16 . . . Level 2 14 | . . . . . . . . . . . . . . 3 . . . . . 15 53 89 16 6 80 27 . . . Level 3 25 | . . . . . . . . . . . . . . 43 . . . . . . 35 . 39 93 19 23 39 17 95 Level 4 11 | . . . . . . . . . . . . . . . . . . . . . . . 32 . . 31 32 82 4 Level 5 . | . . . . . . . . . . . . . . . . . . . . . . . . . . . 11 . . High Security 1 | . . . . . . . . . . . . . . . . . . . . . . . . . . . 16 . . Max Security . | . . . . . . . . . . . . . . . . . . . . . . . . . . . . . . Squads Dispatched 69 | . 5 . . . 7 . 1 8 . 1 . . . 4 . . . . . . . . 6 3 2 8 13 6 5 Investigation 7 | . 2 . . . 3 . . 2 . . . . . . . . . . . . . . . . . . . . . Extermination 12 | . . . . . . . . 3 . . . . . 1 . . . . . . . . . 1 1 2 2 1 1 Reinforcement 22 | . 3 . . . 1 . 1 3 . . . . . 3 . . . . . . . . 4 . . 4 1 . 2 Assault 24 | . . . . . . . . . . 1 . . . . . . . . . . . . 1 2 1 2 10 5 2 Garrison 4 | . . . . . 3 . . . . . . . . . . . . . . . . . 1 . . . . . . Intercept . | . . . . . . . . . . . . . . . . . . . . . . . . . . . . . . Searches Triggered . | . . . . . . . . . . . . . . . . . . . . . . . . . . . . . . Construction Impeded 3 | . . . . . . . . . . . . . . . . . . . . . . . 1 . . 1 1 . . Haulers Reinforced 1 | . . . . . . . . . . . . . . . . . . . . . . . . . . 1 . . . Active Scanning Responses . | . . . . . . . . . . . . . . . . . . . . . . . . . . . . . . Cargo Convoy Interrupts 1 | . . . . . . . . . . . . . . 1 . . . . . . . . . . . . . . . Stealth | -11 -10 -10 -10 -9 -8 -7 -7 -6 -6 -6 -6 -6 -5 -5 -5 -5 -5 -4 -4 -4 -4 -4 -4 -3 -3 -3 -2 -2 -1 --------- Run | Jun Mat Min Exi Min Mat Fac DSF Fac Low Low Zio Dee Pro Fac Upp Upp Zhi Pro Fac Ext Cet Arc Hub Res Qua Sec Res Tes Acc Distress Signals 24 | . 3 . . . 3 . . . . . . . . 2 . . . . . 4 1 1 2 1 . 2 1 . 4 Communications Jammed . | . . . . . . . . . . . . . . . . . . . . . . . . . . . . . . Distress Signals . | . . . . . . . . . . . . . . . . . . . . . . . . . . . . . . Times Spotted 501 | . 21 6 . 6 32 . 5 13 6 22 . 14 5 36 9 14 . 4 1 19 11 4 29 27 12 55 91 39 20 Peak Tracking Total 28 | . 9 3 . 5 4 . 4 3 4 13 . 4 4 8 5 4 . 3 1 4 5 2 5 7 5 5 28 25 14 Tactical Retreats 29 | . . . . . 1 . . 1 . . . . . . . 2 . . . . . . . 2 1 6 9 2 5 Traps | -11 -10 -10 -10 -9 -8 -7 -7 -6 -6 -6 -6 -6 -5 -5 -5 -5 -5 -4 -4 -4 -4 -4 -4 -3 -3 -3 -2 -2 -1 ------- Run | Jun Mat Min Exi Min Mat Fac DSF Fac Low Low Zio Dee Pro Fac Upp Upp Zhi Pro Fac Ext Cet Arc Hub Res Qua Sec Res Tes Acc Traps Triggered 12 | . 2 . . . 2 . . 1 . . . . . . . . . . . 1 . . 1 . 1 . 4 . . Indirectly 3 | . . . . . . . . . . . . . . . . . . . . . . . . . 1 . 2 . . Trap Hack Attempts . | . . . . . . . . . . . . . . . . . . . . . . . . . . . . . . Triggered . | . . . . . . . . . . . . . . . . . . . . . . . . . . . . . . Disarmed 4 | . . . . . . . . . . . . . . . . . . . . 4 . . . . . . . . . Reprogrammed . | . . . . . . . . . . . . . . . . . . . . . . . . . . . . . . Reused . | . . . . . . . . . . . . . . . . . . . . . . . . . . . . . . Traps Extracted . | . . . . . . . . . . . . . . . . . . . . . . . . . . . . . . Installed . | . . . . . . . . . . . . . . . . . . . . . . . . . . . . . . Triggered 5 | . . . . . . . . . 1 . . . . . . 1 . 3 . . . . . . . . . . . Machines | -11 -10 -10 -10 -9 -8 -7 -7 -6 -6 -6 -6 -6 -5 -5 -5 -5 -5 -4 -4 -4 -4 -4 -4 -3 -3 -3 -2 -2 -1 ---------- Run | Jun Mat Min Exi Min Mat Fac DSF Fac Low Low Zio Dee Pro Fac Upp Upp Zhi Pro Fac Ext Cet Arc Hub Res Qua Sec Res Tes Acc Machines Disabled 92 | . 1 3 . 1 3 . . 4 . . . 1 . 19 1 1 . . . 2 7 2 12 3 9 16 3 3 1 Max in Single Turn 10 | . 1 2 . 1 1 . . 2 . . . . . 10 1 1 . . . 2 1 . 3 1 1 2 1 1 1 Garrison Access 1 | . . . . . . . . . . . . . . . . . . . . . . . 1 . . . . . . Network Hub 2 | . . . . . . . . . . . . . . . . . . . . . . . 2 . . . . . . Energy Cycler 1 | . . . . . . . . . . . . . . . . . . . . 1 . . . . . . . . . Machines Repaired . | . . . . . . . . . . . . . . . . . . . . . . . . . . . . . . Machines Sabotaged . | . . . . . . . . . . . . . . . . . . . . . . . . . . . . . . Overloaded Fab Kills . | . . . . . . . . . . . . . . . . . . . . . . . . . . . . . . Hacking | -11 -10 -10 -10 -9 -8 -7 -7 -6 -6 -6 -6 -6 -5 -5 -5 -5 -5 -4 -4 -4 -4 -4 -4 -3 -3 -3 -2 -2 -1 --------- Run | Jun Mat Min Exi Min Mat Fac DSF Fac Low Low Zio Dee Pro Fac Upp Upp Zhi Pro Fac Ext Cet Arc Hub Res Qua Sec Res Tes Acc Machines Accessed 81 | . 3 . 1 . 5 1 . 9 1 2 . . . 6 5 . 7 . 2 9 3 1 2 4 3 4 5 5 3 Terminals 47 | . 2 . . . 2 1 . 5 . . . . . 1 1 . . . 2 9 3 . 1 3 2 4 5 3 3 Fabricators 4 | . . . . . . . . 1 . . . . . 2 . . . . . . . . . . . . . 1 . Repair Stations 3 | . . . . . . . . 2 . . . . . . . . . . . . . . . . . . . 1 . Recycling Units 3 | . 1 . . . 1 . . . . . . . . 1 . . . . . . . . . . . . . . . Scanalyzers 4 | . . . . . 1 . . 1 . . . . . 1 . . . . . . . . . . 1 . . . . Garrison Access 4 | . . . . . 1 . . . . . . . . 1 . . . . . . . . 1 1 . . . . . Total Hacks 305 | . 5 . 2 . 19 1 . 29 1 4 . . . 20 14 . 22 . 4 16 9 25 4 19 13 20 37 24 17 Successful 174 | . 3 . 2 . 12 1 . 9 1 4 . . . 12 14 . 22 . 3 8 5 25 2 9 7 9 9 10 7 Failed 131 | . 2 . . . 7 . . 20 . . . . . 8 . . . . 1 8 4 . 2 10 6 11 28 14 10 Catastrophic 33 | . . . . . 3 . . 7 . . . . . 2 . . . . . . . . . 2 . 4 7 5 3 Database Lockouts . | . . . . . . . . . . . . . . . . . . . . . . . . . . . . . . Manual 116 | . 4 . . . 8 . . 17 . . . . . 7 . . . . 2 5 1 1 2 12 4 11 23 13 6 Terminals 184 | . 4 . . . 6 1 . 22 . . . . . 6 2 . . . 4 16 9 . 2 18 6 20 37 14 17 Fabricators 10 | . . . . . . . . 1 . . . . . 6 . . . . . . . . . . . . . 3 . Repair Stations 12 | . . . . . . . . 5 . . . . . . . . . . . . . . . . . . . 7 . Recycling Units 6 | . 1 . . . 4 . . . . . . . . 1 . . . . . . . . . . . . . . . Scanalyzers 22 | . . . . . 8 . . 1 . . . . . 6 . . . . . . . . . . 7 . . . . Garrison Access 5 | . . . . . 1 . . . . . . . . 1 . . . . . . . . 2 1 . . . . . Terminal Hacks 113 | . . . 2 . 1 1 . 4 1 4 . . . 2 14 . 22 . 1 7 5 25 . 6 1 6 4 3 4 Record 65 | . . . 2 . . . . 1 . 3 . . . . 12 . 10 . . . 4 25 . . 1 2 . 1 4 Part Schematic 4 | . . . . . . . . . . . . . . . . . 4 . . . . . . . . . . . . Robot Analysis 5 | . . . . . . . . . . . . . . . . . 4 . 1 . . . . . . . . . . Prototype ID Bank 5 | . . . . . . . . . . . . . . . . . 4 . . . . . . 1 . . . . . Open Door 11 | . . . . . . . . . 1 1 . . . . 2 . . . . 6 1 . . . . . . . . Open DSF 1 | . . . . . . 1 . . . . . . . . . . . . . . . . . . . . . . . Branch Access Points 4 | . . . . . 1 . . 1 . . . . . 1 . . . . . . . . . 1 . . . . . Terminal Index 1 | . . . . . . . . . . . . . . . . . . . . . . . . . . . 1 . . Alert Level 2 | . . . . . . . . . . . . . . . . . . . . . . . . 1 . . 1 . . Unreport Threat 1 | . . . . . . . . . . . . . . . . . . . . . . . . 1 . . . . . Locate Traps 1 | . . . . . . . . . . . . . . . . . . . . . . . . . . 1 . . . Disarm Traps 1 | . . . . . . . . . . . . . . . . . . . . 1 . . . . . . . . . Dispatch Records 1 | . . . . . . . . . . . . . . . . . . . . . . . . . . . . 1 . Security Status 2 | . . . . . . . . . . . . . . . . . . . . . . . . 1 . 1 . . . Hauler Manifests 1 | . . . . . . . . . . . . . . . . . . . . . . . . . . 1 . . . Registered Prototypes 1 | . . . . . . . . 1 . . . . . . . . . . . . . . . . . . . . . Zone Layout 7 | . . . . . . . . 1 . . . . . 1 . . . . . . . . . 1 . 1 2 1 . Fabricator Hacks 1 | . . . . . . . . . . . . . . 1 . . . . . . . . . . . . . . . Load Schematic 1 | . . . . . . . . . . . . . . 1 . . . . . . . . . . . . . . . Repair Station Hacks 4 | . . . . . . . . 2 . . . . . . . . . . . . . . . . . . . 2 . Scan Component 3 | . . . . . . . . 2 . . . . . . . . . . . . . . . . . . . 1 . Repair 1 | . . . . . . . . . . . . . . . . . . . . . . . . . . . . 1 . Recycling Unit Hacks 1 | . . . . . . . . . . . . . . 1 . . . . . . . . . . . . . . . Retrieve Components 1 | . . . . . . . . . . . . . . 1 . . . . . . . . . . . . . . . Scanalyzer 17 | . . . . . 8 . . . . . . . . 4 . . . . . . . . . . 5 . . . . Insert Component 7 | . . . . . 4 . . . . . . . . 1 . . . . . . . . . . 2 . . . . Analyze 10 | . . . . . 4 . . . . . . . . 3 . . . . . . . . . . 3 . . . . Garrison Access Hacks 1 | . . . . . . . . . . . . . . . . . . . . . . . 1 . . . . . . Seal Access 1 | . . . . . . . . . . . . . . . . . . . . . . . 1 . . . . . . Unauthorized Hacks 37 | . 3 . . . 3 . . 3 . . . . . 4 . . . . 2 1 . . 1 3 1 3 5 5 3 Terminals 29 | . 2 . . . 1 . . 3 . . . . . 2 . . . . 2 1 . . 1 2 1 3 5 3 3 Assimilate 1 | . . . . . . . . . . . . . . 1 . . . . . . . . . . . . . . . Botnet 26 | . 2 . . . 1 . . 3 . . . . . 1 . . . . 2 1 . . 1 2 1 3 4 3 2 Detonate 2 | . . . . . . . . . . . . . . . . . . . . . . . . . . . 1 . 1 Fabricators 3 | . . . . . . . . . . . . . . 1 . . . . . . . . . . . . . 2 . Report 1 | . . . . . . . . . . . . . . . . . . . . . . . . . . . . 1 . Fabnet 2 | . . . . . . . . . . . . . . 1 . . . . . . . . . . . . . 1 . Repair Stations . | . . . . . . . . . . . . . . . . . . . . . . . . . . . . . . Recycling Units 2 | . 1 . . . 1 . . . . . . . . . . . . . . . . . . . . . . . . Tunnel 2 | . 1 . . . 1 . . . . . . . . . . . . . . . . . . . . . . . . Scanalyzers . | . . . . . . . . . . . . . . . . . . . . . . . . . . . . . . Garrison Access 3 | . . . . . 1 . . . . . . . . 1 . . . . . . . . . 1 . . . . . Reprogram 3 | . . . . . 1 . . . . . . . . 1 . . . . . . . . . 1 . . . . . Data Cores Recovered 3 | . . . . . . . . . . . . . . . . . . . . . . . 1 . . 1 1 . . Used 1 | . . . . . . . . . . . . . . . . . . . . . . . . . . . 1 . . Hacking Detections 55 | . 2 . . . 4 . . 9 . . . . . 5 1 . . . 2 6 2 . 2 4 2 4 5 4 3 Full Trace Events 1 | . . . . . . . . 1 . . . . . . . . . . . . . . . . . . . . . Feedback Events . | . . . . . . . . . . . . . . . . . . . . . . . . . . . . . . Feedback Blocked . | . . . . . . . . . . . . . . . . . . . . . . . . . . . . . . Robot Schematics Acquired 3 | . . . . . . . . . . . . . . . . . . . . . . . . . 2 1 . . . Robots Built . | . . . . . . . . . . . . . . . . . . . . . . . . . . . . . . Authchips . | . . . . . . . . . . . . . . . . . . . . . . . . . . . . . . Time . | . . . . . . . . . . . . . . . . . . . . . . . . . . . . . . Total Robot Build Rating . | . . . . . . . . . . . . . . . . . . . . . . . . . . . . . . Part Schematics Acquired 20 | . . . . . 4 . . . . . . . . 1 . . 4 . . . . . . . 2 3 . 6 . Parts Built . | . . . . . . . . . . . . . . . . . . . . . . . . . . . . . . Authchips . | . . . . . . . . . . . . . . . . . . . . . . . . . . . . . . Time . | . . . . . . . . . . . . . . . . . . . . . . . . . . . . . . Total Part Build Rating . | . . . . . . . . . . . . . . . . . . . . . . . . . . . . . . Parts Repaired 1 | . . . . . . . . . . . . . . . . . . . . . . . . . . . . 1 . Time 54 | . . . . . . . . . . . . . . . . . . . . . . . . . . . . 54 . Parts Recycled . | . . . . . . . . . . . . . . . . . . . . . . . . . . . . . . Recycled Matter . | . . . . . . . . . . . . . . . . . . . . . . . . . . . . . . Retrieved Matter . | . . . . . . . . . . . . . . . . . . . . . . . . . . . . . . Retrieved Components 6 | . . . . . . . . . . . . . . 6 . . . . . . . . . . . . . . . Parts Scanalyzed 6 | . . . . . 4 . . . . . . . . 1 . . . . . . . . . . 1 . . . . Part Schematics Acquired 6 | . . . . . 4 . . . . . . . . 1 . . . . . . . . . . 1 . . . . Parts Damaged 1 | . . . . . . . . . . . . . . 1 . . . . . . . . . . . . . . . Bothacking | -11 -10 -10 -10 -9 -8 -7 -7 -6 -6 -6 -6 -6 -5 -5 -5 -5 -5 -4 -4 -4 -4 -4 -4 -3 -3 -3 -2 -2 -1 ------------ Run | Jun Mat Min Exi Min Mat Fac DSF Fac Low Low Zio Dee Pro Fac Upp Upp Zhi Pro Fac Ext Cet Arc Hub Res Qua Sec Res Tes Acc Used RIF Installer . | . . . . . . . . . . . . . . . . . . . . . . . . . . . . . . Robots Hacked 8 | . . . . . . . . . . . . . . . . . 3 . . . . . . . . 2 . . 3 Non-combat . | . . . . . . . . . . . . . . . . . . . . . . . . . . . . . . Combat 8 | . . . . . . . . . . . . . . . . . 3 . . . . . . . . 2 . . 3 Robot Hacks Applied 3 | . . . . . . . . . . . . . . . . . 3 . . . . . . . . . . . . parse_system 3 | . . . . . . . . . . . . . . . . . 3 . . . . . . . . . . . . Relay Couplers Released 4 | . . . . . . . . . . . . . . . . . . . . . . . . . . . . . 4 Programmers 4 | . . . . . . . . . . . . . . . . . . . . . . . . . . . . . 4 Fabnet Peak Effective % 3 | . . . . . . . . . . . . . . . . . . 3 3 3 3 3 3 1 1 1 . . 3 Autooverrided 5 | . . . . . . . . . . . . . . . . . . . . . . . . . . 2 . . 3 Robots Rewired 18 | . . . . . . . . . . 2 . . . . . 1 . . . 14 . . 1 . . . . . . Allies Hacked . | . . . . . . . . . . . . . . . . . . . . . . . . . . . . . . Hacks Repelled . | . . . . . . . . . . . . . . . . . . . . . . . . . . . . . . Allies | -11 -10 -10 -10 -9 -8 -7 -7 -6 -6 -6 -6 -6 -5 -5 -5 -5 -5 -4 -4 -4 -4 -4 -4 -3 -3 -3 -2 -2 -1 -------- Run | Jun Mat Min Exi Min Mat Fac DSF Fac Low Low Zio Dee Pro Fac Upp Upp Zhi Pro Fac Ext Cet Arc Hub Res Qua Sec Res Tes Acc Total Allies 52 | . . 2 . . 3 . . . . 5 4 . . 1 . 1 . . . 21 4 . 1 . . 2 . 2 6 Largest Group 15 | . . 2 1 . 3 . . . . 5 6 6 3 1 . 1 1 1 . 15 15 13 8 . . 2 . 2 5 Highest-Rated Group 980 | . . 56 31 . 48 . . . . 142 184 184 77 10 . 29 29 29 . 751 980 891 523 . . 184 . 192 462 Highest-Rated Ally 159 | . . 31 31 . 16 . . . . 31 51 51 29 10 . 29 29 29 . 159 159 159 109 . . 137 . 96 131 Total Orders 35 | . . . . . . . . . . . . . . . . 11 . 6 3 11 . . 4 . . . . . . STAY 2 | . . . . . . . . . . . . . . . . . . . . . . . 2 . . . . . . FOLLOW 1 | . . . . . . . . . . . . . . . . . . . . . . . 1 . . . . . . GUARD 1 | . . . . . . . . . . . . . . . . . . . . . . . 1 . . . . . . EXPLORE 20 | . . . . . . . . . . . . . . . . 8 . 3 2 7 . . . . . . . . . RETURN 11 | . . . . . . . . . . . . . . . . 3 . 3 1 4 . . . . . . . . . Ally Attacks 400 | . . 1 . . 10 . . . . 17 . 51 5 . . . . 3 . 63 70 29 101 . . 3 . 18 29 Total Damage 11466 | . . . . . 123 . . . . 329 . 715 60 . . . . 38 . 1835 2684 857 3147 . . 80 . 585 1013 Kills 65 | . . . . . 1 . . . . 3 . 11 1 . . . . . . 14 12 3 13 . . . . 2 5 Allies Corrupted 2 | . . . . . . . . . . . . . . . . . . . . . . . 1 . . . . 1 . Allies Melted 1 | . . . . . 1 . . . . . . . . . . . . . . . . . . . . . . . . Intel | -11 -10 -10 -10 -9 -8 -7 -7 -6 -6 -6 -6 -6 -5 -5 -5 -5 -5 -4 -4 -4 -4 -4 -4 -3 -3 -3 -2 -2 -1 ------- Run | Jun Mat Min Exi Min Mat Fac DSF Fac Low Low Zio Dee Pro Fac Upp Upp Zhi Pro Fac Ext Cet Arc Hub Res Qua Sec Res Tes Acc Robot Analysis Total 5 | . . . . . . . . . . . . . . . . . 4 . 1 . . . . . . . . . . Derelict Logs Recovered 11 | . . . . . . . . . 1 2 1 . 1 . 1 2 . 3 . . . . . . . . . . . Drone Launches 28 | . . . . . . . . . . . . . . . . 10 . 5 2 11 . . . . . . . . . Drone Recoveries 24 | . . . . . . . . . . . . . . . . 8 . 5 2 9 . . . . . . . . . Exploration | -11 -10 -10 -10 -9 -8 -7 -7 -6 -6 -6 -6 -6 -5 -5 -5 -5 -5 -4 -4 -4 -4 -4 -4 -3 -3 -3 -2 -2 -1 ------------- Run | Jun Mat Min Exi Min Mat Fac DSF Fac Low Low Zio Dee Pro Fac Upp Upp Zhi Pro Fac Ext Cet Arc Hub Res Qua Sec Res Tes Acc Turns Passed 26382 | 114 774 267 512 51 1378 45 345 1770 787 1272 2579 1103 1099 1370 1897 1251 383 543 227 1084 397 300 774 1099 1093 1537 1198 598 535 Spaces Moved 14255 | 49 402 252 422 26 614 26 189 1078 507 610 1132 494 619 716 1069 595 217 310 130 526 231 169 385 529 504 586 546 476 846 Core 8 | 6 . . . . . . . . . . . . . 1 . . . . . . . 1 . . . . . . . Treads 9496 | 28 138 . . . 320 26 189 474 507 610 1132 280 . 236 1069 595 217 310 130 526 231 168 385 529 451 586 359 . . Legs 75 | 15 60 . . . . . . . . . . . . . . . . . . . . . . . . . . . . Wheels 2750 | . 204 252 422 26 294 . . 604 . . . . 202 314 . . . . . . . . . . 53 . 187 192 . Hover 1926 | . . . . . . . . . . . . 214 417 165 . . . . . . . . . . . . . 284 846 Flight . | . . . . . . . . . . . . . . . . . . . . . . . . . . . . . . Fastest Speed 38 | 50 90 90 120 120 105 145 145 120 152 152 225 126 120 105 160 160 160 160 160 160 160 160 160 160 160 135 90 38 38 Average Speed 152 | 134 118 100 120 120 143 145 145 137 152 190 225 209 169 140 168 167 164 160 160 160 160 167 160 160 184 164 145 70 45 Slowest Speed 1350 | 160 160 120 120 120 245 145 145 232 152 232 225 305 196 1000 240 240 240 160 160 240 240 1350 240 160 240 240 170 152 131 Overloaded Moves 131 | . . . . . . . . . . . . . . . . . . . . . . . . . . . . 82 49 Propulsion Burnouts . | . . . . . . . . . . . . . . . . . . . . . . . . . . . . . . Robots Hopped . | . . . . . . . . . . . . . . . . . . . . . . . . . . . . . . Cave-ins Triggered 3 | . . . . . . . . . . . . . . . . . . . . . . . . . . . 1 2 . Teleports 1 | . . . . . . . . . . . . . . . . . . . . . . . . . . . . 1 . Exploration Rate (%) 52 | 4 51 56 73 11 53 1 91 27 70 74 86 66 70 15 94 86 62 90 11 73 72 97 40 15 48 33 19 63 29 Regions Visited 29 Branch Regions 19 Pre-discovered Areas 10 | . 1 . 1 . 1 . . . . 1 2 . . . . 1 3 . . . . . . . . . . . . Known Exits Taken 23 | . . . . . 1 1 . 1 1 1 1 1 1 1 1 1 1 1 1 1 1 1 1 1 1 1 1 1 . Unknown Exits Taken 5 | 1 1 1 1 1 . . . . . . . . . . . . . . . . . . . . . . . . . Scrap Searched 19 | . . 1 . . . . . . 1 2 3 . . . 5 4 . 3 . . . . . . . . . . . Spaces Dug 223 | . . . . . . . . 5 . . 2 . . 10 . . . . . . . . 22 7 1 30 118 15 13 Terrain Destroyed 1711 | . . 22 . 44 8 . 13 43 3 114 2 97 67 146 103 50 . 7 . 24 . . 428 79 22 236 175 15 13 Melee 46 | . . . . . . . . . . . 2 . . 7 . . . . . . . . 1 2 . 4 2 15 13 Projectile 531 | . . . . . 8 . . 10 3 6 . 3 1 12 8 9 . 7 . 13 . . 22 29 22 221 157 . . AOE 1134 | . . 22 . 44 . . 13 33 . 108 . 94 66 127 95 41 . . . 11 . . 405 48 . 11 16 . . Terrain Rammed . | . . . . . . . . . . . . . . . . . . . . . . . . . . . . . . Walls Destroyed . | . . . . . . . . . . . . . . . . . . . . . . . . . . . . . . Machines Disabled . | . . . . . . . . . . . . . . . . . . . . . . . . . . . . . . Actions | -11 -10 -10 -10 -9 -8 -7 -7 -6 -6 -6 -6 -6 -5 -5 -5 -5 -5 -4 -4 -4 -4 -4 -4 -3 -3 -3 -2 -2 -1 --------- Run | Jun Mat Min Exi Min Mat Fac DSF Fac Low Low Zio Dee Pro Fac Upp Upp Zhi Pro Fac Ext Cet Arc Hub Res Qua Sec Res Tes Acc Total 17505 | 73 624 261 429 35 943 34 255 1295 514 683 1161 547 646 977 1134 817 245 348 147 711 252 181 472 699 635 953 778 697 959 Wait 1069 | . 132 . . . 100 . 38 86 . 13 . . 5 78 11 135 . 27 8 17 2 . 1 64 1 108 77 132 34 Move 14223 | 48 401 251 421 25 613 25 188 1077 506 609 1131 493 618 715 1068 594 216 309 129 525 230 168 384 528 503 585 544 474 845 Hop . | . . . . . . . . . . . . . . . . . . . . . . . . . . . . . . Pick Up 263 | 5 16 3 2 1 43 3 8 23 . 5 9 5 1 24 7 11 3 2 . 7 1 1 3 10 25 22 11 8 4 Fast Attach 202 | 7 4 . . . 15 1 . 9 . 3 1 13 3 19 7 2 8 . 3 3 4 2 6 5 17 22 15 20 13 Attach 139 | . 1 . . 2 14 3 . 7 1 3 . . 4 7 7 10 . 1 2 7 . . 3 10 12 21 13 7 4 Detach 31 | . 1 . 2 . 1 . . 1 . . . . . 6 1 . . . 1 1 . . 1 . 3 3 1 3 6 Swap 249 | 4 11 2 1 1 21 . 7 24 3 7 7 10 3 30 12 11 3 . 1 4 5 1 15 15 10 18 15 2 6 Drop 358 | . 18 3 3 . 38 2 9 31 . 4 8 18 2 40 4 13 11 2 2 3 6 4 9 9 35 36 11 21 16 Fire 749 | 9 40 2 . 6 98 . 5 37 4 19 . 8 10 51 17 40 4 7 1 40 4 5 49 54 24 125 88 2 . Melee 89 | . . . . . . . . . . . 5 . . 7 . . . . . . . . 1 4 5 13 2 27 25 Ram . | . . . . . . . . . . . . . . . . . . . . . . . . . . . . . . Kick . | . . . . . . . . . . . . . . . . . . . . . . . . . . . . . . Crush . | . . . . . . . . . . . . . . . . . . . . . . . . . . . . . . Escape Stasis 3 | . . . . . . . . . . . . . . . . . . . . 1 . . . . . . 1 1 . Rewire 130 | . . . . . . . . . . 20 . . . . . 1 . . . 103 . . . . . . . . 6 Trap . | . . . . . . . . . . . . . . . . . . . . . . . . . . . . . . Miscellaneous . | . . . . . . . . . . . . . . . . . . . . . . . . . . . . . . Route ------- -11/Junkyard -10/Materials (discovered 2 exits: [*Mat] / [*Min]) -10/Mines -10/Exiles -9/Mines -8/Materials -7/Factory -7/DSF -6/Factory (discovered 3 exits: *Fac / *Low x2) -6/Lower Caves -6/Lower Caves (discovered 2 exits: *Fac / *Zio) -6/Zion (discovered 2 exits: *Dee / [*Pro]) -6/Deep Caves -5/Proximity Caves -5/Factory (discovered 2 exits: *Upp x2) -5/Upper Caves -5/Upper Caves (discovered 2 exits: *Fac / *Zhi) -5/Zhirov -4/Proximity Caves -4/Factory -4/Extension (discovered 3 exits: *Res x2 / *Cet) -4/Cetus -4/Archives (discovered 3 exits: *Res / *Hub x2) -4/Hub_04(d) -3/Research (discovered 2 exits: *Qua x2) -3/Quarantine (discovered 2 exits: *Res / *Sec) -3/Section 7 -2/Research -2/Testing -1/Access (discovered 2 exits: *Sur / Com) To Epsilon Eridani History --------- Turn | Location | Event 27 | -11/Junkyard | Discovered new exit (range 15) 115 | -11/Junkyard | Entered Materials 285 | -10/Materials | Destroyed 7 combat bots 308 | -10/Materials | Build established: Mutant 757 | -10/Materials | Discovered new exit (range 11) 858 | -10/Materials | Discovered new exit (range 15) 889 | -10/Materials | Entered Mines 1094 | -10/Mines | Deemed a non-threat by the Exiles lab entrance 1096 | -10/Mines | Discovered new exit (range 5) 1156 | -10/Mines | Entered Exiles 1156 | -10/Exiles | Accompanied by 1 ally 1185 | -10/Exiles | Met 8R-AWN 1186 | -10/Exiles | Led the pair of lost Derelicts to a safe place 1206 | -10/Exiles | Met EX-HEX 1253 | -10/Exiles | Met EX-DEC 1264 | -10/Exiles | Learned location of Zion (-6) 1284 | -10/Exiles | Met EX-BIN 1569 | -10/Exiles | Visited The Gauntlet 1653 | -10/Exiles | Discovered new exit (range 14) 1668 | -10/Exiles | Entered Mines 1670 | -9/Mines | Met a Derelict bent on vengeance 1675 | -9/Mines | Core integrity fell below 50% 1679 | -9/Mines | Discovered new exit (range 11) 1719 | -9/Mines | Entered Materials 1719 | -8/Materials | Evolved 4 slots: Utility x4 1995 | -8/Materials | Garrison activated, responded to threat 2042 | -8/Materials | Lost 7 parts (5u2w) 3036 | -8/Materials | Discovered new exit (range 14) 3095 | -8/Materials | Identified exit to Factory 3097 | -8/Materials | Entered Factory 3097 | -7/Factory | Evolved 2 slots: Utility x2 3142 | -7/Factory | Identified exit to DSF 3142 | -7/Factory | Entered DSF 3170 | -7/DSF | Additional patrols routed to DSF 3414 | -7/DSF | Build established: Hacker-Mutant 3427 | -7/DSF | Discovered new exit (range 15) 3447 | -7/DSF | Identified exit to Factory 3487 | -7/DSF | Entered Factory 3487 | -6/Factory | Evolved 2 slots: Utility x2 3651 | -6/Factory | Identified exit to Lower Caves 4304 | -6/Factory | Spotted B-75 Beast 4499 | -6/Factory | Discovered new exit (range 10) 4517 | -6/Factory | Identified exit to Factory 5257 | -6/Factory | Entered Lower Caves 5830 | -6/Lower Caves | Attracted the attention of an 0b10 checkpoint 5852 | -6/Lower Caves | Learned 4 Factory zone layouts 5922 | -6/Lower Caves | Discovered new exit (range 12) 5937 | -6/Lower Caves | Identified exit to Lower Caves 6031 | -6/Lower Caves | Ambushed by wild Derelicts 6044 | -6/Lower Caves | Entered another Lower Caves area 6092 | -6/Lower Caves | Discovered exit to Factory (range 13) 6095 | -6/Lower Caves | Attracted the attention of an 0b10 outpost 6148 | -6/Lower Caves | Destroyed 12 combat bots 6334 | -6/Lower Caves | Build established: Mutant 6443 | -6/Lower Caves | Encountered a Warlord checkpoint 6516 | -6/Lower Caves | A Commander dispatched an escort 6539 | -6/Lower Caves | Learned Research emergency access door positions 6678 | -6/Lower Caves | Learned Factory emergency access door positions 6752 | -6/Lower Caves | Learned Factory trap positions 6991 | -6/Lower Caves | Discovered new exit (range 5) 7000 | -6/Lower Caves | Identified exit to Zion 7316 | -6/Lower Caves | Entered Zion 7316 | -6/Zion | Accompanied by 5 allies 7317 | -6/Zion | Commander's escort returned to base 7317 | -6/Zion | Commander's escort returned to base 7317 | -6/Zion | Commander's escort returned to base 7507 | -6/Zion | Discovered new exit (range 11) 7565 | -6/Zion | System corruption cleaned by Quarantine Array 7733 | -6/Zion | Gained Derelict followers 8386 | -6/Zion | Learned location of Warlord (-4) 8728 | -6/Zion | Found Prototype Special Weapon 8729 | -6/Zion | Identified RU-N14's Throwing Claymores 8735 | -6/Zion | Found RU-N14's Throwing Claymores 8739 | -6/Zion | Found RU-N14's Throwing Claymores 8744 | -6/Zion | Found RU-N14's Throwing Claymores 8796 | -6/Zion | Learned Factory terminal intel 8955 | -6/Zion | Given A8's code to call for help 9879 | -6/Zion | Discovered new exit (range 5) 9881 | -6/Zion | Saw the warning signs outside the Deep Caves entrance 9885 | -6/Zion | Identified exit to Deep Caves 9895 | -6/Zion | Entered Deep Caves 9895 | -6/Deep Caves | Accompanied by 6 allies 10167 | -6/Deep Caves | Z-Facility disabled 10177 | -6/Deep Caves | Attacked by Z-Imprinter 10183 | -6/Deep Caves | Destroyed Z-Imprinter 10417 | -6/Deep Caves | Found Prototype Protection 10417 | -6/Deep Caves | Identified Zio. Weapon Casing 10769 | -6/Deep Caves | Found Prototype Protection 10769 | -6/Deep Caves | Identified Zio. Heavy Carapace 10990 | -6/Deep Caves | Discovered new exit (range 6) 10995 | -6/Deep Caves | Identified exit to Proximity Caves 10998 | -6/Deep Caves | Entered Proximity Caves 10998 | -5/Proximity Caves | Accompanied by 3 allies 11504 | -5/Proximity Caves | Learned Factory stockpile data 11804 | -5/Proximity Caves | Spotted B-75 Beast 11837 | -5/Proximity Caves | Destroyed B-75 Beast 12078 | -5/Proximity Caves | Discovered exit to Factory (range 11) 12097 | -5/Proximity Caves | Entered Factory 12097 | -5/Factory | Evolved 2 slots: Utility x2 12099 | -5/Factory | Loaded intel: 103 trap records 12102 | -5/Factory | Loaded intel: 26 terminal locations 12154 | -5/Factory | Build established: Scavenger-Mutant 12214 | -5/Factory | Identified exit to Upper Caves 12873 | -5/Factory | Cargo convoy interrupted 12902 | -5/Factory | Destroyed 13 combat bots 12906 | -5/Factory | Lost 3 parts (3u) 12910 | -5/Factory | Build established: Mutant 12923 | -5/Factory | Found Prototype Slashing Weapon 12923 | -5/Factory | Identified Nanosword 12928 | -5/Factory | Found Prototype Processor 12928 | -5/Factory | Identified Exp. Core Analyzer 12939 | -5/Factory | Found Prototype Device 12939 | -5/Factory | Identified Exp. Thermal Shield 12969 | -5/Factory | Found Prototype Launcher 12970 | -5/Factory | Identified Com. Tesla Bomb Launcher 12992 | -5/Factory | Found Exp. Thermal Shield 13467 | -5/Factory | Entered Upper Caves 13479 | -5/Upper Caves | Lost 4 parts (4u) 14187 | -5/Upper Caves | Attracted the attention of an 0b10 checkpoint 14237 | -5/Upper Caves | Discovered new exit (range 5) 14241 | -5/Upper Caves | Identified exit to Upper Caves 14319 | -5/Upper Caves | Learned Factory trap positions 14319 | -5/Upper Caves | Learned Research trap positions 14319 | -5/Upper Caves | Learned Armory trap positions 14319 | -5/Upper Caves | Learned Research stockpile data 14319 | -5/Upper Caves | Learned Extension security intel 14319 | -5/Upper Caves | Learned Research garrison access intel 14732 | -5/Upper Caves | Found Alien Artifact 14732 | -5/Upper Caves | Identified Dimensional Node Initializer 14732 | -5/Upper Caves | Initialized slip node 15364 | -5/Upper Caves | Entered another Upper Caves area 15373 | -5/Upper Caves | Discovered new exit (range 9) 15430 | -5/Upper Caves | Destroyed 7 combat bots 15479 | -5/Upper Caves | Identified exit to Factory 15558 | -5/Upper Caves | Learned Factory trap positions 15562 | -5/Upper Caves | Learned location of Armory (-4) 16017 | -5/Upper Caves | Spotted B-75 Beast 16110 | -5/Upper Caves | Destroyed B-75 Beast 16500 | -5/Upper Caves | Discovered new exit (range 47) 16607 | -5/Upper Caves | Identified exit to Zhirov 16615 | -5/Upper Caves | Entered Zhirov 16615 | -5/Zhirov | Accompanied by 1 ally 16615 | -5/Zhirov | Discovered new exit (range 3) 16636 | -5/Zhirov | Identified exit to Proximity Caves 16663 | -5/Zhirov | Met Zhirov 16710 | -5/Zhirov | Learned location of Quarantine (-3) 16710 | -5/Zhirov | Learned location of Testing (-2) 16710 | -5/Zhirov | Learned location of Command (-1) 16737 | -5/Zhirov | Zhirov requested help retrieving the SGEMP Prototype 16776 | -5/Zhirov | Found Alien Artifact 16776 | -5/Zhirov | Identified Integrated Reactor 16776 | -5/Zhirov | Installed Integrated Reactor, increased core energy generation (+10) 16910 | -5/Zhirov | Found Alien Artifact 16998 | -5/Zhirov | Entered Proximity Caves 16998 | -4/Proximity Caves | Accompanied by 1 ally 17169 | -4/Proximity Caves | Discovered exit to Factory (range 95) 17354 | -4/Proximity Caves | Attracted the attention of an 0b10 checkpoint 17433 | -4/Proximity Caves | Learned Research terminal intel 17541 | -4/Proximity Caves | Entered Factory 17541 | -4/Factory | Evolved 2 slots: Utility x2 17542 | -4/Factory | Loaded intel: 72 trap records 17737 | -4/Factory | Discovered new exit (range 15) 17766 | -4/Factory | Identified exit to Extension 17768 | -4/Factory | Entered Extension 18199 | -4/Extension | Rescued a captive Derelict 18249 | -4/Extension | Rescued a captive Derelict 18285 | -4/Extension | Spotted B-86 Titan 18293 | -4/Extension | Build established: Commander-Mutant 18297 | -4/Extension | Spotted B-86 Titan 18321 | -4/Extension | Allies destroyed B-86 Titan 18329 | -4/Extension | Allies destroyed B-86 Titan 18380 | -4/Extension | Discovered new exit (range 3) 18380 | -4/Extension | Identified exit to Research 18427 | -4/Extension | Rescued A7 18521 | -4/Extension | Rescued a captive Derelict 18523 | -4/Extension | Rescued a captive Derelict 18686 | -4/Extension | Energy Cycler disabled 18689 | -4/Extension | Rescued a captive Derelict 18696 | -4/Extension | Rescued a captive Derelict 18813 | -4/Extension | Discovered exit to Research (range 10) 18814 | -4/Extension | Discovered new exit (range 6) 18824 | -4/Extension | Identified exit to Cetus 18852 | -4/Extension | Entered Cetus 18852 | -4/Cetus | Accompanied by 15 allies (A7) 18857 | -4/Cetus | Acquired a Cetus Manufacturing Module code from A7 18871 | -4/Cetus | Spotted Cetus Guard 18874 | -4/Cetus | Spotted Cetus Guard 18874 | -4/Cetus | Spotted Cetus Guard 18875 | -4/Cetus | Spotted Cetus Guard 18882 | -4/Cetus | Allies destroyed Cetus Guard 18888 | -4/Cetus | Allies destroyed Cetus Guard 18890 | -4/Cetus | Allies destroyed Cetus Guard 18895 | -4/Cetus | Allies destroyed Cetus Guard 18999 | -4/Cetus | Started Cetus Manufacturing Module 19024 | -4/Cetus | Manufactured an Enhanced Grunt 19049 | -4/Cetus | Manufactured an Enhanced Grunt 19074 | -4/Cetus | Manufactured an Enhanced Grunt 19099 | -4/Cetus | Manufactured an Enhanced Grunt 19105 | -4/Cetus | Cetus Manufacturing Module disabled 19197 | -4/Cetus | Escorted A7 to Cetus Mainframe 19220 | -4/Cetus | Discovered new exit (range 16) 19242 | -4/Cetus | Identified exit to Archives 19249 | -4/Cetus | Entered Archives 19249 | -4/Archives | Accompanied by 13 allies (A7) 19255 | -4/Archives | Received a hacking code to weaken MAIN.C 19316 | -4/Archives | Found Exp. Thermal Shield 19332 | -4/Archives | Unable to access archive contents 19348 | -4/Archives | Unable to access archive contents 19367 | -4/Archives | Unable to access archive contents 19373 | -4/Archives | Discovered new exit (range 15) 19383 | -4/Archives | Unable to access archive contents 19383 | -4/Archives | Unable to access archive contents 19389 | -4/Archives | Discovered new exit (range 13) 19420 | -4/Archives | Identified exit to Hub_04(d) 19458 | -4/Archives | Discovered exit to Research (range 14) 19549 | -4/Archives | Entered Hub_04(d) 19549 | -4/Hub_04(d) | Accompanied by 8 allies 19607 | -4/Hub_04(d) | Garrison activated, responded to threat 19762 | -4/Hub_04(d) | Network Hub disabled 19931 | -4/Hub_04(d) | Build established: Scavenger-Mutant 19933 | -4/Hub_04(d) | Discovered exit to Research (range 16) 19977 | -4/Hub_04(d) | Spotted Lightning 19977 | -4/Hub_04(d) | Spotted Lightning 19978 | -4/Hub_04(d) | Spotted Lightning 19983 | -4/Hub_04(d) | Allies destroyed Lightning 19993 | -4/Hub_04(d) | Destroyed Lightning 20010 | -4/Hub_04(d) | Destroyed Lightning 20041 | -4/Hub_04(d) | Spotted B-86 Titan 20049 | -4/Hub_04(d) | First assault squad dispatched 20069 | -4/Hub_04(d) | Rewired B-86 Titan 20285 | -4/Hub_04(d) | Network Hub disabled 20305 | -4/Hub_04(d) | Destroyed Titan 7a 20323 | -4/Hub_04(d) | Entered Research 20323 | -3/Research | Evolved 2 slots: Utility x2 20324 | -3/Research | Loaded intel: 71 trap records 20327 | -3/Research | Loaded intel: 25 terminal locations 20328 | -3/Research | Loaded intel: 4 garrison access locations 20534 | -3/Research | Found Prototype Slashing Weapon 20534 | -3/Research | Identified Molecular Scythe 21073 | -3/Research | First assault squad dispatched 21194 | -3/Research | Identified exit to Quarantine 21307 | -3/Research | Destroyed 10 combat bots 21341 | -3/Research | Lost 9 parts (1p6u2w) 21422 | -3/Research | Entered Quarantine 21571 | -3/Quarantine | Build established: Hacker-Mutant 21663 | -3/Quarantine | Found Alien Artifact 21683 | -3/Quarantine | Identified Terrabomb 21683 | -3/Quarantine | Used Terrabomb 21704 | -3/Quarantine | Discovered new exit (range 15) 21725 | -3/Quarantine | Found Alien Energy Cannon 21725 | -3/Quarantine | Identified Core Cannon 21754 | -3/Quarantine | Identified exit to Research 21773 | -3/Quarantine | Found Sigix Corpse 21792 | -3/Quarantine | Found Sigix Corpse 21833 | -3/Quarantine | Found Alien Artifact 21835 | -3/Quarantine | Identified Phase Armor 21929 | -3/Quarantine | Found Alien Impact Weapon 21929 | -3/Quarantine | Identified Core Stripper 21947 | -3/Quarantine | First assault squad dispatched 21974 | -3/Quarantine | Identified Transdimensional Reconstructor 22214 | -3/Quarantine | Spotted Fortress 22248 | -3/Quarantine | Destroyed Fortress 22268 | -3/Quarantine | Found Prototype Protection 22268 | -3/Quarantine | Identified Centrium Heavy Armor Plating 22272 | -3/Quarantine | Found Prototype Device 22272 | -3/Quarantine | Identified Thermal Barrier 22281 | -3/Quarantine | Found Antimissile System 22285 | -3/Quarantine | Found Prototype Device 22286 | -3/Quarantine | Identified Exp. EM Disruption Field 22301 | -3/Quarantine | Found Prototype Device 22301 | -3/Quarantine | Identified Exp. Force Field 22495 | -3/Quarantine | Discovered new exit (range 5) 22502 | -3/Quarantine | Identified exit to Section 7 22515 | -3/Quarantine | Entered Section 7 22583 | -3/Section 7 | Found Alien Artifact 22583 | -3/Section 7 | Identified Integrated Mediator 22583 | -3/Section 7 | Installed Integrated Mediator, increased core attachment efficiency. 22753 | -3/Section 7 | Core integrity fell below 50% 22930 | -3/Section 7 | Spotted S7 Guard 22949 | -3/Section 7 | Destroyed S7 Guard 22964 | -3/Section 7 | Found Prototype Protection 22964 | -3/Section 7 | Identified Hvy. Regenerative Plating 23010 | -3/Section 7 | Found Alien Artifact 23010 | -3/Section 7 | Identified Integrated Thermoelectric Network 23010 | -3/Section 7 | Installed Integrated Thermoelectric Network, gained heat-energy exchange potential 23265 | -3/Section 7 | First assault squad dispatched 23354 | -3/Section 7 | Found Alien Artifact 23354 | -3/Section 7 | Identified Microwarp Drive 23551 | -3/Section 7 | Discovered exit to Research (range 14) 23780 | -3/Section 7 | Core integrity fell below 20% 23909 | -3/Section 7 | Found Alien Artifact 23909 | -3/Section 7 | Identified Integrated Dissipator 23909 | -3/Section 7 | Installed Integrated Dissipator, increased core heat dissipation (+20) 24052 | -3/Section 7 | Entered Research 24052 | -2/Research | Evolved 2 slots: Utility x2 24053 | -2/Research | Identified exit to Testing 24302 | -2/Research | First assault squad dispatched 24492 | -2/Research | Found Prototype Processor 24492 | -2/Research | Identified Spectral Analyzer 24604 | -2/Research | Spotted B-90 Cyclops 24869 | -2/Research | Destroyed 8 combat bots 25057 | -2/Research | High security lockdown imminent 25134 | -2/Research | Crushed by falling debris 25137 | -2/Research | High security lockdown engaged 25217 | -2/Research | Core integrity fell below 50% 25250 | -2/Research | Entered Testing 25280 | -2/Testing | Lost 13 parts (1p1n9u2w) 25322 | -2/Testing | Found Spectral Analyzer 25380 | -2/Testing | Repaired Hdn. Centrium Wheel 25500 | -2/Testing | First assault squad dispatched 25530 | -2/Testing | Crushed by falling debris 25530 | -2/Testing | System corruption reached 10% 25540 | -2/Testing | Spotted Alpha 7 25551 | -2/Testing | Crushed by falling debris 25564 | -2/Testing | Stole the SGEMP Prototype 25568 | -2/Testing | Spotted Striker 25569 | -2/Testing | Warped through subspace 25622 | -2/Testing | Found Prototype Device 25622 | -2/Testing | Identified Exp. Actuator Array 25636 | -2/Testing | Found Prototype Energy Cannon 25636 | -2/Testing | Identified Disintegrator 25786 | -2/Testing | Enhanced Grunt warped into view, answering call for help 25791 | -2/Testing | Enhanced Grunt warped into view, answering call for help 25842 | -2/Testing | Discovered new exit (range 10) 25848 | -2/Testing | Identified exit to Access 25848 | -2/Testing | Entered Access 25848 | -1/Access | Evolved 2 slots: Utility x2 25849 | -1/Access | Loaded intel: 102 machine locations 25849 | -1/Access | Loaded intel: 103 trap records 25849 | -1/Access | Identified exit to Surface 25849 | -1/Access | Discovered exit to Surface (range 234) 25849 | -1/Access | Identified exit to Command 25849 | -1/Access | Discovered exit to Command (range 124) 25850 | -1/Access | Delivered the SGEMP Prototype to Zhirov 25850 | -1/Access | Zhirov transferred Access data 26098 | -1/Access | First assault squad dispatched 26295 | -1/Access | Local machine network offline 26383 | *** | Escaped! Last Messages --------------- 26289_ Dropped Adv. ECM Suite. 26289_ Acquired Imp. System Restoration Module. 26295_ ALERT: Suspected network compromise, local machines offline for diagnostic review. 26295_ W-44 Eye held in stasis. 26300_ W-44 Eye sends out distress signal. 26305_ ALERT: Suspicious intruders detected, dispatching Cutter reinforcements to area. 26314_ K-01 Serf cleans the Terminal. 26320_ Reaction Control System destroyed. 26320_ Slug penetrates Wall. 26323_ Penetrated by Slug. 26327_ Slug penetrates Wall. 26331_ Imp. System Restoration Module purges 1% system corruption (0%). 26348_ ALERT: Rogue bot located, Programmers report to Access Zone 1K. 26349_ W-44 Eye sends out distress signal. 26359_ Terminal unresponsive. 26376_ ALERT: Significant disruption in Zone 4S, assault force dispatched. 26380_ Main Access Shell breached. [Achievement: Inspector Gadget] Map ----- +----------------------------------------------------+ | ########## # ############### | | # ############### | | + ############### | | ### ###### # ! ############### | | ### ####### ##################################### | | ###+####### ############################# # | | # # #################### + | | ! # # #################### # | | # # #################### # | | # # ####################! # | | # # #################### # | | + # " #################### # | | ]! # # """ #################### # | | ]! # # """ #################### # | | ] # + " #################### # | | # ############################# # | | ! # ############################# # | | +########## ############################# # | | ####### ############################# # | | ####### #######"##################### # | | ""####### """T"""" """" # # | | ""####### """ """" """" BB # # | | ""####### " """""" """" BB ###+##### | | G####### " " " """" | | ""####### " " "" " """" | | ""####### " " @" " """" | | ""####### " " " """" | | ####### " " """" """" BB ###+##### | | ####### " """" BB # | | ####### " """" # | | ########### ######"";#################### "" | | ########### #######"##################### "" | | ########### ############################# """"" | | ########### ############################# """"" | | ########### ############################# "" | | ########### ############################# "" | | ########### ############################# | | ########### ############################# | | ####### ############################# | | ####### ############################# | | ####### ##################################### | | ####### # ######################## | | "" ####### + ######################## | | """"####### # "" ######################## | | """"####### # "" ######################## | | "" ####### # "Y ######################## | | ####### # "" ######################## | | ####### # "" ######################## | | ####### # ######################## | | ####### # ######################## | +----------------------------------------------------+ Best States ------------- Heat Dissipation 136 Coolant Potential 100 Energy Generation 43 Energy Capacity 950 Matter Stores 600 Matter Capacity 600 Sight Range 24 Robot Scan Range 16 Terrain Scan Range 24 Terrain Scan Density 135 ECM Strength 2 Jamming Range 14 Cloak Strength 4 Power Amplification 30 Additional Mass Support 12 Corruption Containment 20 Armor Coverage 1425 Resistance: KI 30 Resistance: TH 50 Resistance: EM 75 Utility Shielding 90 Point Defense Rating 240 Weapon Cycling 20 Evasion (%) 65 Targeting Accuracy 26 Melee Accuracy 8 Target Analysis 12 Core Analysis 8 Recoil Reduction 2 Matter Filtering 30 Energy Filtering 30 Particle Charging 20 Kinecelleration 40 Offensive Hacking 24 Defensive Hacking 26 Item Schematics ----------------- Grenade Launcher | -8/Materials | Scanalyzed Arm. Wheel | -8/Materials | Scanalyzed Adv. Treads | -8/Materials | Scanalyzed System Shield | -8/Materials | Scanalyzed Gravity Neutralizer | -5/Factory | Scanalyzed Assault Drone Bay | -5/Zhirov | Free Exp. Heat Sink | -5/Zhirov | Free Exp. Optical Array | -5/Zhirov | Free Imp. Arc Thrower | -5/Zhirov | Free Energy Mantle | -3/Quarantine | Archive Biometal Medium Treads | -3/Quarantine | Scanalyzed Adv. EM Disruption Field | -3/Section 7 | Archive Adv. Plasma Rifle | -3/Section 7 | Archive Cld. Phase Gun | -3/Section 7 | Archive Exp. Q-thruster | -2/Testing | Archive Imp. Q-thruster | -2/Testing | Archive Adv. Gravity Neutralizer | -2/Testing | Archive Hdn. Centrium Leg | -2/Testing | Archive Exp. Gyrokinetic Inverter | -2/Testing | Archive Imp. KE Penetrator | -2/Testing | Archive Robot Schematics ------------------ R-10 Processor | -3/Quarantine | Archive A-15 Conveyor | -3/Quarantine | Archive A-02 Transporter | -3/Section 7 | Archive Fabricated ------------ Nothing Alien Tech Used ----------------- Dimensional Node Initializer Integrated Reactor Terrabomb Core Cannon Phase Armor Core Stripper Integrated Mediator Integrated Thermoelectric Network Microwarp Drive Integrated Dissipator Transdimensional Reconstructor Achievements -------------- Dynamic Key Inspector Gadget Nope Overkill Sunderer Challenges ------------ None Game ------ Seed ReflectiveGhostNeutralizer Manual? 0 Play Time 06:47:50 Cumulative 159.3 hours Start 2023.12.12 @ 16:20:35 End 2023.12.20 @ 16:06:47 Sessions 25 Manual Loads 0 Difficulty Rogue Special Mode None Game No. 35 Rogue 35 Adventurer 0 Explorer 0 Win Type 0 Total 3 Types 2/1/0/0/0/0/0/0/0 Lore% 52 Gallery% 67 Achievement% 60 Wizard Run 0 Options --------- ASCII 0 Keyboard 0 Movement Mouse Keybinds 0 Fullscreen 2 Font 18/SmallcapsGlow Map View 76x50 Tactical HUD 1 Map Filters NONE Filters NONE Steam 1 RUN: 16c8df37-544b-431b-85e7-2589b0ae7977